[Event "*** Titled Tuesday 3|2 Blitz (Early)"]
[Site "Chess.com"]
[Date "2017.01.03"]
[Round "6"]
[White "visa"]
[Black "Morshynska"]
[Result "1-0"]
[WhiteElo "2150"]
[BlackElo "2085"]
[TimeControl "180+2"]
[EndTime "12:20:01 PST"]
[Termination "visa won by resignation"]

1. e4 {[%clk 0:03:02]} 1... e5 {[%clk 0:03:00.3]} 2. d4 {[%clk 0:03:01.4]} 2...
exd4 {[%clk 0:03:00.7]} 3. Qxd4 {[%clk 0:03:02.3]} 3... Nc6 {[%clk 0:03:01.1]}
4. Qe3 {[%clk 0:03:03.5]} 4... Nf6 {[%clk 0:03:01.6]} 5. Bd2 {[%clk 0:03:04.2]}
5... Bb4 {[%clk 0:03:01.2]} 6. Nc3 {[%clk 0:03:04.7]} 6... O-O {[%clk
0:03:01.4]} 7. O-O-O {[%clk 0:03:06.3]} 7... Re8 {[%clk 0:03:02.7]} 8. f3 {[%clk
0:03:07.9]} 8... d5 {[%clk 0:03:03]} 9. Qf2 {[%clk 0:03:09.5]} 9... d4 {[%clk
0:03:03.3]} 10. Nb5 {[%clk 0:03:00.1]} 10... Bc5 {[%clk 0:02:59]} 11. Bf4 {[%clk
0:03:00.1]} 11... Bb6 {[%clk 0:02:32.8]} 12. Ne2 {[%clk 0:03:00.4]} 12... d3
{[%clk 0:02:10.6]} 13. Qe1 {[%clk 0:03:01.1]} 13... a6 {[%clk 0:01:37.5]} 14.
Rxd3 {[%clk 0:02:51.3]} 14... Qe7 {[%clk 0:01:36.3]} 15. Nbc3 {[%clk 0:02:04.5]}
15... Be6 {[%clk 0:01:35.5]} 16. a3 {[%clk 0:01:53.5]} 16... Bc5 {[%clk
0:01:21.2]} 17. Nd5 {[%clk 0:01:47.7]} 17... Bxd5 {[%clk 0:01:11.9]} 18. exd5
{[%clk 0:01:48.3]} 18... Ne5 {[%clk 0:01:10.1]} 19. Bxe5 {[%clk 0:01:12.9]}
19... Qxe5 {[%clk 0:01:12]} 20. Qc3 {[%clk 0:01:08.6]} 20... Be3+ {[%clk
0:00:58.4]} 21. Kb1 {[%clk 0:01:05.2]} 21... Nxd5 {[%clk 0:00:51.7]} 22. Qxe5
{[%clk 0:00:47.2]} 22... Rxe5 {[%clk 0:00:53.6]} 23. c4 {[%clk 0:00:21.4]} 23...
Nb6 {[%clk 0:00:39.3]} 24. f4 {[%clk 0:00:17.9]} 24... Re7 {[%clk 0:00:27.9]}
25. b3 {[%clk 0:00:18.8]} 25... a5 {[%clk 0:00:23.2]} 26. Nc3 {[%clk 0:00:18.2]}
26... a4 {[%clk 0:00:21.5]} 27. bxa4 {[%clk 0:00:11.8]} 27... Nxc4 {[%clk
0:00:20.2]} 28. Nd5 {[%clk 0:00:13]} 28... Re4 {[%clk 0:00:15.3]} 29. Rc3 {[%clk
0:00:12.1]} 29... b5 {[%clk 0:00:12.8]} 30. Bxc4 {[%clk 0:00:11.9]} 30... bxc4
{[%clk 0:00:11.5]} 31. Rxe3 {[%clk 0:00:11.6]} 31... Rb8+ {[%clk 0:00:12.5]} 32.
Ka2 {[%clk 0:00:12.3]} 32... Rd4 {[%clk 0:00:13.2]} 33. Re2 {[%clk 0:00:07.8]}
33... Rxd5 {[%clk 0:00:13.9]} 34. Rhe1 {[%clk 0:00:08.3]} 34... g6 {[%clk
0:00:14.1]} 35. g3 {[%clk 0:00:09.5]} 35... Kg7 {[%clk 0:00:13.6]} 36. Rc2
{[%clk 0:00:10.5]} 36... Rd3 {[%clk 0:00:12.2]} 37. Rec1 {[%clk 0:00:08.4]}
37... Rbb3 {[%clk 0:00:12.6]} 38. Rxc4 {[%clk 0:00:09.7]} 38... Rxa3+ {[%clk
0:00:13.6]} 39. Kb2 {[%clk 0:00:11.1]} 39... Rxa4 {[%clk 0:00:13.7]} 40. Rxa4
{[%clk 0:00:11.5]} 40... Rd2+ {[%clk 0:00:14.4]} 41. Rc2 {[%clk 0:00:12.5]}
41... Rd7 {[%clk 0:00:15.2]} 42. Rac4 {[%clk 0:00:12.7]} 42... h5 {[%clk
0:00:15.6]} 43. Rxc7 {[%clk 0:00:13.6]} 43... Rd3 {[%clk 0:00:17.1]} 44. R7c3
{[%clk 0:00:14.6]} 44... Rd5 {[%clk 0:00:17.6]} 45. Re2 {[%clk 0:00:15.4]} 45...
h4 {[%clk 0:00:17.9]} 46. Rb3 {[%clk 0:00:16]} 46... hxg3 {[%clk 0:00:18.5]} 47.
hxg3 {[%clk 0:00:17.2]} 47... g5 {[%clk 0:00:19.3]} 48. fxg5 {[%clk 0:00:17.2]}
48... Rxg5 {[%clk 0:00:20.4]} 49. Re7 {[%clk 0:00:18.3]} 49... Rf5 {[%clk
0:00:21.1]} 50. g4 {[%clk 0:00:18.6]} 50... Rf4 {[%clk 0:00:21.8]} 51. Rbb7
{[%clk 0:00:18.8]} 51... Kg6 {[%clk 0:00:22.7]} 52. Kc2 {[%clk 0:00:18.2]} 52...
Rf3 {[%clk 0:00:22.3]} 53. Kd2 {[%clk 0:00:16.6]} 53... Rf6 {[%clk 0:00:22.5]}
54. Ke2 {[%clk 0:00:17.2]} 54... Rf4 {[%clk 0:00:23.3]} 55. Ke3 {[%clk
0:00:18.5]} 55... Rf6 {[%clk 0:00:24.1]} 56. g5 {[%clk 0:00:19.6]} 56... Rf1
{[%clk 0:00:23.8]} 57. Kd4 {[%clk 0:00:18.5]} 57... Rf4+ {[%clk 0:00:24]} 58.
Ke3 {[%clk 0:00:18.4]} 58... Rf1 {[%clk 0:00:24.4]} 59. Rb6+ {[%clk 0:00:19.2]}
59... Kxg5 {[%clk 0:00:24.2]} 60. Re5+ {[%clk 0:00:17.6]} 60... f5 {[%clk
0:00:21.5]} 61. Rb2 {[%clk 0:00:16]} 61... Re1+ {[%clk 0:00:21.3]} 62. Re2
{[%clk 0:00:16.4]} 62... Rg1 {[%clk 0:00:21.5]} 63. Kf2 {[%clk 0:00:16.8]} 63...
Rg4 {[%clk 0:00:21.5]} 64. R2e3 {[%clk 0:00:16.3]} 64... Rd4 {[%clk 0:00:15.3]}
65. Rf3 {[%clk 0:00:15.8]} 65... Rd2+ {[%clk 0:00:15.9]} 66. Ke1 {[%clk
0:00:15.4]} 66... Ra2 {[%clk 0:00:16.1]} 67. Rexf5+ {[%clk 0:00:14.9]} 67... Kg4
{[%clk 0:00:16.3]} 68. Rf8 {[%clk 0:00:14]} 68... Rb2 {[%clk 0:00:15.7]} 69. Rf2
{[%clk 0:00:13.8]} 69... Rb1+ {[%clk 0:00:15.7]} 70. Ke2 {[%clk 0:00:15]} 70...
Rb2+ {[%clk 0:00:16.9]} 71. Kd3 {[%clk 0:00:15.6]} 1-0

[Event "*** Titled Tuesday 3|2 Blitz (Early)"]
[Site "Chess.com"]
[Date "2017.01.03"]
[Round "6"]
[White "ABDELAZEEZ-M"]
[Black "SwiftyMcBishop"]
[Result "1-0"]
[WhiteElo "2051"]
[BlackElo "2109"]
[TimeControl "180+2"]
[EndTime "12:21:42 PST"]
[Termination "ABDELAZEEZ-M won by checkmate"]

1. d4 {[%clk 0:02:53.8]} 1... d5 {[%clk 0:03:00.5]} 2. Bf4 {[%clk 0:02:35.1]}
2... Nf6 {[%clk 0:02:57.4]} 3. e3 {[%clk 0:02:35.1]} 3... Bf5 {[%clk 0:02:54.8]}
4. Nf3 {[%clk 0:02:26.6]} 4... e6 {[%clk 0:02:45]} 5. Ne5 {[%clk 0:02:26.5]}
5... Nbd7 {[%clk 0:02:39.9]} 6. Be2 {[%clk 0:02:26.5]} 6... Nxe5 {[%clk
0:02:40.7]} 7. dxe5 {[%clk 0:02:27.2]} 7... Nd7 {[%clk 0:02:36.4]} 8. g4 {[%clk
0:02:12.8]} 8... Bg6 {[%clk 0:02:36.2]} 9. h3 {[%clk 0:02:13.8]} 9... Be7 {[%clk
0:02:31.2]} 10. Nc3 {[%clk 0:02:10.6]} 10... c6 {[%clk 0:02:31]} 11. Qd2 {[%clk
0:02:04.9]} 11... Nc5 {[%clk 0:02:23.8]} 12. O-O-O {[%clk 0:01:56.4]} 12... Ne4
{[%clk 0:02:21.9]} 13. Nxe4 {[%clk 0:01:56.6]} 13... dxe4 {[%clk 0:02:23.8]} 14.
Qxd8+ {[%clk 0:01:47.8]} 14... Rxd8 {[%clk 0:02:23.9]} 15. h4 {[%clk 0:01:48.1]}
15... h5 {[%clk 0:02:22.4]} 16. g5 {[%clk 0:01:48.3]} 16... Bf5 {[%clk
0:02:21.5]} 17. Rxd8+ {[%clk 0:01:46.2]} 17... Kxd8 {[%clk 0:02:20.6]} 18. Rd1+
{[%clk 0:01:47]} 18... Kc7 {[%clk 0:02:21.8]} 19. f3 {[%clk 0:01:39.2]} 19... g6
{[%clk 0:02:19.5]} 20. Rd4 {[%clk 0:01:34.7]} 20... exf3 {[%clk 0:02:03.7]} 21.
Bxf3 {[%clk 0:01:35.2]} 21... Rd8 {[%clk 0:02:05.1]} 22. Rxd8 {[%clk 0:01:33.3]}
22... Kxd8 {[%clk 0:02:07]} 23. e4 {[%clk 0:01:34]} 23... Bh3 {[%clk 0:02:05.4]}
24. Be3 {[%clk 0:01:28]} 24... b6 {[%clk 0:02:03.1]} 25. Be2 {[%clk 0:01:24]}
25... Kc7 {[%clk 0:02:01.3]} 26. Bd3 {[%clk 0:01:23.3]} 26... Bb4 {[%clk
0:01:59.1]} 27. c3 {[%clk 0:01:23.3]} 27... Be7 {[%clk 0:01:58.5]} 28. Kd1
{[%clk 0:01:20.1]} 28... Kb7 {[%clk 0:01:53.8]} 29. Ke1 {[%clk 0:01:20.6]} 29...
Bg4 {[%clk 0:01:54.1]} 30. Kd2 {[%clk 0:01:09.5]} 30... a6 {[%clk 0:01:53.7]}
31. a3 {[%clk 0:01:01.9]} 31... c5 {[%clk 0:01:51.1]} 32. b4 {[%clk 0:01:01.3]}
32... cxb4 {[%clk 0:01:39.1]} 33. cxb4 {[%clk 0:01:01.7]} 33... a5 {[%clk
0:01:39.8]} 34. bxa5 {[%clk 0:01:02.6]} 34... bxa5 {[%clk 0:01:40.7]} 35. Bb5
{[%clk 0:00:49.5]} 35... Bxa3 {[%clk 0:01:40.5]} 36. Be8 {[%clk 0:00:50.2]}
36... Bb4+ {[%clk 0:01:40.6]} 37. Kd3 {[%clk 0:00:51]} 37... Be1 {[%clk
0:01:28.3]} 38. Bxf7 {[%clk 0:00:49.9]} 38... a4 {[%clk 0:01:29.6]} 39. Bxg6
{[%clk 0:00:45.8]} 39... Bxh4 {[%clk 0:01:24.5]} 40. Bh7 {[%clk 0:00:43.2]}
40... Bg3 {[%clk 0:00:57.4]} 41. Bd4 {[%clk 0:00:42.4]} 41... Bf4 {[%clk
0:00:55.5]} 42. g6 {[%clk 0:00:43.2]} 42... Bh6 {[%clk 0:00:57]} 43. Bg8 {[%clk
0:00:38.9]} 43... h4 {[%clk 0:00:54.6]} 44. Bf2 {[%clk 0:00:37]} 44... h3 {[%clk
0:00:52]} 45. Bg3 {[%clk 0:00:37.4]} 45... Kb6 {[%clk 0:00:52.7]} 46. Kc4 {[%clk
0:00:36.6]} 46... Ka5 {[%clk 0:00:46.8]} 47. Bf7 {[%clk 0:00:36.3]} 47... Be2+
{[%clk 0:00:37.1]} 48. Kc3 {[%clk 0:00:35.5]} 48... Bg4 {[%clk 0:00:37.8]} 49.
Be8 {[%clk 0:00:35.8]} 49... Bg7 {[%clk 0:00:31.3]} 50. Bc6 {[%clk 0:00:33.2]}
50... Bd1 {[%clk 0:00:28.2]} 51. Bd7 {[%clk 0:00:32.8]} 51... Bb3 {[%clk
0:00:26.4]} 52. Bh2 {[%clk 0:00:32.4]} 52... Kb6 {[%clk 0:00:21]} 53. Kb4 {[%clk
0:00:31.2]} 53... Bf8+ {[%clk 0:00:15.2]} 54. Kc3 {[%clk 0:00:32.1]} 54... Kc7
{[%clk 0:00:13.4]} 55. Bb5 {[%clk 0:00:32.2]} 55... Bd1 {[%clk 0:00:07.6]} 56.
Bf1 {[%clk 0:00:29.4]} 56... a3 {[%clk 0:00:08.1]} 57. Bxh3 {[%clk 0:00:29.1]}
57... Kd7 {[%clk 0:00:07.9]} 58. Bf1 {[%clk 0:00:23.3]} 58... Bg7 {[%clk
0:00:05.6]} 59. Bc4 {[%clk 0:00:22.9]} 59... Bf8 {[%clk 0:00:04.8]} 60. Bf4
{[%clk 0:00:23.1]} 60... Bf3 {[%clk 0:00:03.3]} 61. Kd3 {[%clk 0:00:21]} 61...
Bh5 {[%clk 0:00:03.5]} 62. Bb5+ {[%clk 0:00:14.4]} 62... Kc7 {[%clk 0:00:03.3]}
63. Bc4 {[%clk 0:00:12.2]} 63... Kd7 {[%clk 0:00:04.4]} 64. Bb5+ {[%clk
0:00:13]} 64... Kd8 {[%clk 0:00:05.4]} 65. Bc4 {[%clk 0:00:14]} 65... Ke7 {[%clk
0:00:05.4]} 66. Bg5+ {[%clk 0:00:14.9]} 66... Kd7 {[%clk 0:00:06.2]} 67. Bb5+
{[%clk 0:00:15.8]} 67... Kc7 {[%clk 0:00:07.4]} 68. Bc4 {[%clk 0:00:15.6]} 68...
Bg4 {[%clk 0:00:08.1]} 69. Bf6 {[%clk 0:00:16]} 69... Bh5 {[%clk 0:00:06.9]} 70.
g7 {[%clk 0:00:16.9]} 70... Bxg7 {[%clk 0:00:08.1]} 71. Bxg7 {[%clk 0:00:15.7]}
71... Bg4 {[%clk 0:00:09.6]} 72. Bf8 {[%clk 0:00:16.6]} 72... Kc6 {[%clk
0:00:04.6]} 73. Bxa3 {[%clk 0:00:17.2]} 73... Bh3 {[%clk 0:00:06.5]} 74. Kd4
{[%clk 0:00:17.8]} 74... Bg4 {[%clk 0:00:06]} 75. Ke3 {[%clk 0:00:19]} 75... Bh3
{[%clk 0:00:07.1]} 76. Kf4 {[%clk 0:00:20.9]} 76... Kd7 {[%clk 0:00:07.1]} 77.
Kg5 {[%clk 0:00:22.1]} 77... Bg2 {[%clk 0:00:08]} 78. Kf6 {[%clk 0:00:22.4]}
78... Bxe4 {[%clk 0:00:07.9]} 79. Bxe6+ {[%clk 0:00:23.6]} 79... Kd8 {[%clk
0:00:07.6]} 80. Bf7 {[%clk 0:00:24.9]} 80... Bc6 {[%clk 0:00:06.4]} 81. e6
{[%clk 0:00:25.7]} 81... Kc7 {[%clk 0:00:05.9]} 82. e7 {[%clk 0:00:26.6]} 82...
Kb6 {[%clk 0:00:06.6]} 83. e8=Q {[%clk 0:00:27.7]} 83... Bxe8 {[%clk 0:00:08]}
84. Bxe8 {[%clk 0:00:29.1]} 84... Ka5 {[%clk 0:00:09.9]} 85. Ke5 {[%clk
0:00:29.9]} 85... Kb6 {[%clk 0:00:11]} 86. Kd5 {[%clk 0:00:31.1]} 86... Kc7
{[%clk 0:00:12.3]} 87. Ba4 {[%clk 0:00:32.2]} 87... Kb7 {[%clk 0:00:13.2]} 88.
Kd6 {[%clk 0:00:32.4]} 88... Kb6 {[%clk 0:00:14.6]} 89. Bb4 {[%clk 0:00:34.3]}
89... Kb7 {[%clk 0:00:15.3]} 90. Kd7 {[%clk 0:00:34.6]} 90... Kb6 {[%clk
0:00:16.6]} 91. Bc6 {[%clk 0:00:35.5]} 91... Ka6 {[%clk 0:00:17.3]} 92. Kc7
{[%clk 0:00:36]} 92... Ka7 {[%clk 0:00:18.3]} 93. Bb5 {[%clk 0:00:37.4]} 93...
Ka8 {[%clk 0:00:19.4]} 94. Kb6 {[%clk 0:00:37.5]} 94... Kb8 {[%clk 0:00:20.6]}
95. Bd7 {[%clk 0:00:38.2]} 95... Ka8 {[%clk 0:00:21.6]} 96. Bc5 {[%clk
0:00:37.8]} 96... Kb8 {[%clk 0:00:22.8]} 97. Bd6+ {[%clk 0:00:39.1]} 97... Ka8
{[%clk 0:00:24.2]} 98. Bc6# {[%clk 0:00:41]} 1-0

[Event "*** Titled Tuesday 3|2 Blitz (Early)"]
[Site "Chess.com"]
[Date "2017.01.03"]
[Round "6"]
[White "aspired"]
[Black "pastouche06"]
[Result "1-0"]
[WhiteElo "2393"]
[BlackElo "2339"]
[TimeControl "180+2"]
[EndTime "12:22:54 PST"]
[Termination "aspired won on time"]

1. e4 {[%clk 0:03:02]} 1... c6 {[%clk 0:03:00.5]} 2. Nf3 {[%clk 0:03:02.5]} 2...
d5 {[%clk 0:02:54.3]} 3. exd5 {[%clk 0:03:03.5]} 3... cxd5 {[%clk 0:02:55.1]} 4.
Ne5 {[%clk 0:03:05]} 4... g6 {[%clk 0:02:54.5]} 5. d4 {[%clk 0:02:59.6]} 5...
Bg7 {[%clk 0:02:54]} 6. c3 {[%clk 0:02:58.2]} 6... Nf6 {[%clk 0:02:54.9]} 7. Bd3
{[%clk 0:02:58.1]} 7... O-O {[%clk 0:02:55.5]} 8. Nd2 {[%clk 0:02:58]} 8... Nc6
{[%clk 0:02:56]} 9. f4 {[%clk 0:02:57.8]} 9... Bf5 {[%clk 0:02:54.1]} 10. Qe2
{[%clk 0:02:55.1]} 10... e6 {[%clk 0:02:46.4]} 11. O-O {[%clk 0:02:52.7]} 11...
Bxd3 {[%clk 0:02:43.5]} 12. Qxd3 {[%clk 0:02:53.1]} 12... Nd7 {[%clk 0:02:35.8]}
13. Nxd7 {[%clk 0:02:51.1]} 13... Qxd7 {[%clk 0:02:36.6]} 14. Nf3 {[%clk
0:02:53]} 14... f6 {[%clk 0:02:32.2]} 15. Bd2 {[%clk 0:02:51.5]} 15... Rae8
{[%clk 0:02:15.9]} 16. Rae1 {[%clk 0:02:51.4]} 16... Re7 {[%clk 0:02:15.2]} 17.
Re2 {[%clk 0:02:45]} 17... Rfe8 {[%clk 0:02:16.2]} 18. Rfe1 {[%clk 0:02:45.4]}
18... Qd6 {[%clk 0:02:08]} 19. g3 {[%clk 0:02:29.4]} 19... e5 {[%clk 0:02:03.8]}
20. fxe5 {[%clk 0:02:28.1]} 20... fxe5 {[%clk 0:02:05.7]} 21. dxe5 {[%clk
0:02:28.8]} 21... Nxe5 {[%clk 0:02:07.1]} 22. Nxe5 {[%clk 0:02:28.7]} 22... Rxe5
{[%clk 0:02:09]} 23. Rxe5 {[%clk 0:02:26.8]} 23... Rxe5 {[%clk 0:02:10.9]} 24.
Rxe5 {[%clk 0:02:12.2]} 24... Bxe5 {[%clk 0:02:12.7]} 25. Be3 {[%clk 0:02:08.5]}
25... a6 {[%clk 0:02:08.7]} 26. Bd4 {[%clk 0:02:08]} 26... Bxd4+ {[%clk
0:02:04.3]} 27. Qxd4 {[%clk 0:02:09.9]} 27... Qe6 {[%clk 0:02:05.6]} 28. Kf2
{[%clk 0:02:08.8]} 28... h5 {[%clk 0:01:58.5]} 29. h4 {[%clk 0:02:03.1]} 29...
Kh7 {[%clk 0:01:56.1]} 30. a4 {[%clk 0:02:03.4]} 30... Qf5+ {[%clk 0:01:55]} 31.
Ke3 {[%clk 0:02:03.5]} 31... Qb1 {[%clk 0:01:41.8]} 32. b4 {[%clk 0:02:01.7]}
32... Qe1+ {[%clk 0:01:40.7]} 33. Kf4 {[%clk 0:02:00.4]} 33... Qe6 {[%clk
0:01:36.4]} 34. a5 {[%clk 0:01:56.6]} 34... Qg4+ {[%clk 0:01:26.9]} 35. Ke5
{[%clk 0:01:58]} 35... Qxg3+ {[%clk 0:01:27.3]} 36. Kxd5 {[%clk 0:01:59.9]}
36... Qf3+ {[%clk 0:01:28]} 37. Ke5 {[%clk 0:01:38.7]} 37... Qf7 {[%clk
0:01:23.3]} 38. Ke4 {[%clk 0:01:25.8]} 38... Qe6+ {[%clk 0:01:22.9]} 39. Kf3
{[%clk 0:01:24.6]} 39... Qh3+ {[%clk 0:01:20.5]} 40. Kf2 {[%clk 0:01:25.7]}
40... Qh2+ {[%clk 0:01:15.9]} 41. Ke1 {[%clk 0:01:26.1]} 41... Qh1+ {[%clk
0:01:16.1]} 42. Kd2 {[%clk 0:01:25.4]} 42... Qg2+ {[%clk 0:01:13]} 43. Kc1
{[%clk 0:01:25.5]} 43... Qc6 {[%clk 0:01:11.2]} 44. Kb2 {[%clk 0:01:18.9]} 44...
Qg2+ {[%clk 0:01:11.8]} 45. Kb3 {[%clk 0:01:18.7]} 45... Qc6 {[%clk 0:01:11.2]}
46. Qe5 {[%clk 0:01:13.5]} 46... Qd7 {[%clk 0:01:07.6]} 47. Qf6 {[%clk
0:01:03.1]} 47... Qd5+ {[%clk 0:01:05.3]} 48. Ka3 {[%clk 0:01:02.4]} 48... Qc4
{[%clk 0:01:01.5]} 49. Qe7+ {[%clk 0:01:00.5]} 49... Kh6 {[%clk 0:01:01.8]} 50.
Qg5+ {[%clk 0:00:56.9]} 50... Kh7 {[%clk 0:01:01.8]} 51. Qe7+ {[%clk 0:00:54.9]}
51... Kh6 {[%clk 0:01:03.1]} 52. Qg5+ {[%clk 0:00:55.5]} 52... Kh7 {[%clk
0:01:03.8]} 53. Kb2 {[%clk 0:00:55.9]} 53... Qe2+ {[%clk 0:01:00.2]} 54. Kb3
{[%clk 0:00:56.9]} 54... Qe6+ {[%clk 0:01:01.2]} 55. c4 {[%clk 0:00:57.4]} 55...
Qe4 {[%clk 0:00:53.6]} 56. b5 {[%clk 0:00:53.1]} 56... axb5 {[%clk 0:00:46.7]}
57. cxb5 {[%clk 0:00:55]} 57... Qd3+ {[%clk 0:00:47.2]} 58. Kb2 {[%clk
0:00:49.3]} 58... Qe2+ {[%clk 0:00:39.2]} 59. Kc3 {[%clk 0:00:48.5]} 59... Qf3+
{[%clk 0:00:38.3]} 60. Kd4 {[%clk 0:00:43.2]} 60... Qf2+ {[%clk 0:00:35.6]} 61.
Kd5 {[%clk 0:00:33.4]} 61... Qa2+ {[%clk 0:00:36.1]} 62. Kc5 {[%clk 0:00:22.5]}
62... Qxa5 {[%clk 0:00:36.4]} 63. Qe7+ {[%clk 0:00:22.6]} 63... Kh6 {[%clk
0:00:37]} 64. Qg5+ {[%clk 0:00:23.8]} 64... Kh7 {[%clk 0:00:38]} 65. Qe7+ {[%clk
0:00:25.7]} 65... Kh6 {[%clk 0:00:39.3]} 66. Qg5+ {[%clk 0:00:27.1]} 66... Kh7
{[%clk 0:00:39.9]} 67. Qe7+ {[%clk 0:00:29]} 67... Kh6 {[%clk 0:00:41.1]} 68.
Qxb7 {[%clk 0:00:30.4]} 68... Qc3+ {[%clk 0:00:40.7]} 69. Kd6 {[%clk 0:00:25.1]}
69... Qd4+ {[%clk 0:00:41.7]} 70. Qd5 {[%clk 0:00:26.4]} 70... Qxh4 {[%clk
0:00:41.1]} 71. b6 {[%clk 0:00:23.6]} 71... Qf4+ {[%clk 0:00:38]} 72. Qe5 {[%clk
0:00:21]} 72... Qb4+ {[%clk 0:00:37.7]} 73. Kc7 {[%clk 0:00:21.6]} 73... Qc4+
{[%clk 0:00:33.5]} 74. Kd7 {[%clk 0:00:22.2]} 74... Qb4 {[%clk 0:00:31.3]} 75.
Kc7 {[%clk 0:00:20.2]} 75... Qc4+ {[%clk 0:00:29.6]} 76. Kd7 {[%clk 0:00:21.3]}
76... Qf7+ {[%clk 0:00:29.2]} 77. Kc6 {[%clk 0:00:21.2]} 77... Qc4+ {[%clk
0:00:29]} 78. Kd7 {[%clk 0:00:22]} 78... Qf7+ {[%clk 0:00:29.7]} 79. Kc8 {[%clk
0:00:23.2]} 79... Qc4+ {[%clk 0:00:28.6]} 80. Kb8 {[%clk 0:00:22.4]} 80... Qg8+
{[%clk 0:00:27.1]} 81. Ka7 {[%clk 0:00:22.8]} 81... Qa2+ {[%clk 0:00:26.7]} 82.
Kb8 {[%clk 0:00:24]} 82... Qg8+ {[%clk 0:00:28]} 83. Kc7 {[%clk 0:00:25.3]}
83... Qc4+ {[%clk 0:00:27]} 84. Kd6 {[%clk 0:00:26.3]} 84... Qb4+ {[%clk
0:00:23.5]} 85. Qc5 {[%clk 0:00:25.5]} 85... Qf4+ {[%clk 0:00:23.7]} 86. Kc6
{[%clk 0:00:24.8]} 86... h4 {[%clk 0:00:17]} 87. b7 {[%clk 0:00:25.4]} 87... h3
{[%clk 0:00:18.3]} 88. Qd6 {[%clk 0:00:24.4]} 88... Qc4+ {[%clk 0:00:13.1]} 89.
Kb6 {[%clk 0:00:23.8]} 89... Qb3+ {[%clk 0:00:13.4]} 90. Kc7 {[%clk 0:00:24.3]}
90... Qc4+ {[%clk 0:00:14.3]} 91. Kd8 {[%clk 0:00:22.7]} 91... Qg8+ {[%clk
0:00:12]} 92. Kd7 {[%clk 0:00:23.8]} 92... Qf7+ {[%clk 0:00:12.5]} 93. Kc6
{[%clk 0:00:24.3]} 93... Qc4+ {[%clk 0:00:13.3]} 94. Kb6 {[%clk 0:00:25.4]}
94... Qb3+ {[%clk 0:00:13.9]} 95. Ka6 {[%clk 0:00:25.9]} 95... Qa4+ {[%clk
0:00:12.5]} 96. Kb6 {[%clk 0:00:27]} 96... Qb3+ {[%clk 0:00:13.8]} 97. Kc6
{[%clk 0:00:27.4]} 97... Qc4+ {[%clk 0:00:14.2]} 98. Qc5 {[%clk 0:00:27.8]}
98... Qe6+ {[%clk 0:00:15]} 99. Kb5 {[%clk 0:00:28.2]} 99... Qb3+ {[%clk
0:00:10.7]} 100. Qb4 {[%clk 0:00:28.8]} 100... Qd5+ {[%clk 0:00:11.6]} 101. Kb6
{[%clk 0:00:29.7]} 101... Qe6+ {[%clk 0:00:08.1]} 102. Ka5 {[%clk 0:00:30.5]}
102... Qa2+ {[%clk 0:00:08.3]} 103. Qa4 {[%clk 0:00:30.9]} 103... Qd5+ {[%clk
0:00:08.6]} 104. Qb5 {[%clk 0:00:31.4]} 104... Qa2+ {[%clk 0:00:06.1]} 105. Kb6
{[%clk 0:00:31.9]} 105... Qe6+ {[%clk 0:00:06.7]} 106. Qc6 {[%clk 0:00:32.7]}
1-0

[Event "*** Titled Tuesday 3|2 Blitz (Early)"]
[Site "Chess.com"]
[Date "2017.01.03"]
[Round "7"]
[White "Saitama_Hero"]
[Black "macko06"]
[Result "0-1"]
[WhiteElo "2166"]
[BlackElo "2289"]
[TimeControl "180+2"]
[EndTime "12:27:40 PST"]
[Termination "macko06 won by resignation"]

1. Nf3 {[%clk 0:03:02]} 1... Nf6 {[%clk 0:03:00.8]} 2. c4 {[%clk 0:03:02]} 2...
e6 {[%clk 0:02:57.2]} 3. g3 {[%clk 0:03:00.4]} 3... d5 {[%clk 0:02:53.5]} 4. Bg2
{[%clk 0:03:00.4]} 4... Be7 {[%clk 0:02:49.9]} 5. O-O {[%clk 0:03:01.7]} 5...
O-O {[%clk 0:02:50.7]} 6. b3 {[%clk 0:03:03]} 6... b6 {[%clk 0:02:50.4]} 7. Ba3
{[%clk 0:02:56.3]} 7... c5 {[%clk 0:02:45.8]} 8. d4 {[%clk 0:02:52.3]} 8... cxd4
{[%clk 0:02:38.3]} 9. Nxd4 {[%clk 0:02:47.1]} 9... Bb7 {[%clk 0:02:37.6]} 10.
Bxe7 {[%clk 0:02:43.1]} 10... Qxe7 {[%clk 0:02:34.9]} 11. cxd5 {[%clk
0:02:42.8]} 11... Nxd5 {[%clk 0:02:31.3]} 12. e4 {[%clk 0:02:40.4]} 12... Nf6
{[%clk 0:02:31]} 13. Qe2 {[%clk 0:02:38.3]} 13... Nc6 {[%clk 0:02:30.6]} 14.
Nxc6 {[%clk 0:02:33.2]} 14... Bxc6 {[%clk 0:02:32.5]} 15. Nd2 {[%clk 0:02:29.1]}
15... Rac8 {[%clk 0:02:30]} 16. Rfe1 {[%clk 0:02:18.3]} 16... Rfd8 {[%clk
0:02:29.8]} 17. Nc4 {[%clk 0:02:17.9]} 17... Bb5 {[%clk 0:02:27.7]} 18. Rac1
{[%clk 0:02:15.2]} 18... Rc7 {[%clk 0:02:24.4]} 19. e5 {[%clk 0:02:12]} 19...
Nd5 {[%clk 0:02:20.1]} 20. Red1 {[%clk 0:02:01.9]} 20... Bxc4 {[%clk 0:02:03.3]}
21. Rxc4 {[%clk 0:01:58]} 21... Rcd7 {[%clk 0:01:48.4]} 22. Rcd4 {[%clk
0:01:54.7]} 22... Nc3 {[%clk 0:01:43]} 0-1

[Event "*** Titled Tuesday 3|2 Blitz (Early)"]
[Site "Chess.com"]
[Date "2017.01.03"]
[Round "7"]
[White "Ilja_Semjonovs"]
[Black "jup1978"]
[Result "1-0"]
[WhiteElo "2173"]
[BlackElo "2234"]
[TimeControl "180+2"]
[EndTime "12:27:43 PST"]
[Termination "Ilja_Semjonovs won by resignation"]

1. d4 {[%clk 0:03:02]} 1... Nf6 {[%clk 0:02:59.1]} 2. Nf3 {[%clk 0:03:02.8]}
2... e6 {[%clk 0:03:00.4]} 3. Bg5 {[%clk 0:03:02.5]} 3... h6 {[%clk 0:03:00.2]}
4. Bxf6 {[%clk 0:03:01.5]} 4... Qxf6 {[%clk 0:03:00.6]} 5. e3 {[%clk 0:03:02]}
5... c5 {[%clk 0:03:01.9]} 6. c3 {[%clk 0:03:02.3]} 6... cxd4 {[%clk 0:03:01]}
7. cxd4 {[%clk 0:03:02.3]} 7... Bb4+ {[%clk 0:02:55.8]} 8. Nc3 {[%clk 0:03:02]}
8... O-O {[%clk 0:02:56]} 9. Bd3 {[%clk 0:03:01]} 9... b6 {[%clk 0:02:56.6]} 10.
Be4 {[%clk 0:02:52.7]} 10... d5 {[%clk 0:02:52.7]} 11. Bd3 {[%clk 0:02:53]}
11... Ba6 {[%clk 0:02:50.8]} 12. Ne5 {[%clk 0:02:50.4]} 12... Rc8 {[%clk
0:02:43.4]} 13. Rc1 {[%clk 0:02:41.8]} 13... Bxd3 {[%clk 0:02:38.4]} 14. Qxd3
{[%clk 0:02:41.1]} 14... Nc6 {[%clk 0:02:38.6]} 15. f4 {[%clk 0:02:29.5]} 15...
Nxe5 {[%clk 0:02:32.9]} 16. fxe5 {[%clk 0:02:15.5]} 16... Qh4+ {[%clk
0:02:33.3]} 17. g3 {[%clk 0:02:08.7]} 17... Qh3 {[%clk 0:02:29]} 18. Qf1 {[%clk
0:01:56.7]} 18... Qh5 {[%clk 0:02:19.8]} 19. Qe2 {[%clk 0:01:52.2]} 19... Qh3
{[%clk 0:02:15.5]} 20. Rf1 {[%clk 0:01:44.3]} 20... Bxc3+ {[%clk 0:02:12.1]} 21.
Rxc3 {[%clk 0:01:40.8]} 21... Rxc3 {[%clk 0:02:12.4]} 22. bxc3 {[%clk
0:01:40.6]} 22... Rc8 {[%clk 0:02:13.7]} 23. Kd2 {[%clk 0:01:39.3]} 23... Qh5
{[%clk 0:02:09.2]} 24. Qxh5 {[%clk 0:01:38.5]} 1-0